bitfinex-derivatives/quotes_SOLF0:USTF0_20250730
["timestamp","ask_amount","ask_price","bid_price","bid_amount"]
[1753871184997,3.05,179.99,179.97,3.07]
[1753871185200,7.3314484,179.98,179.97,3.07]
[1753871189203,3.05,179.98,179.97,3.07]
[1753871189605,3.05,180.0,179.97,3.07]
[1753871189903,7.33157982,179.99,179.97,3.07]
[1753871190106,3.05,179.99,179.97,3.07]
[1753871190507,3.05,180.0,179.98,3.07]
[1753871190707,4.28155636,179.99,179.98,3.07]
[1753871191113,7.33155636,179.99,179.98,3.07]
[1753871192310,4.28155636,179.99,179.98,3.07]
[1753871192814,7.33155636,179.99,179.98,3.07]
[1753871193405,3.05,179.98,179.92,3.07]
[1753871193610,3.05,179.96,179.9,3.07]
[1753871193810,5.5578,179.94,179.9,5.5586]
[1753871194105,3.05,179.92,179.86,2.7638799]
[1753871194314,4.28503827,179.91,179.87,5.5597]
[1753871194516,3.05,179.89,179.88,3.07]
[1753871194714,3.05,179.89,179.84,522.59748881]
[1753871195013,3.05,179.86,179.82,3.07]
[1753871195214,3.05,179.84,179.83,3.07]
[1753871195808,5.5612,179.83,179.81,3.07]
[1753871196012,2.7638799,179.87,179.8,3.07]
[1753871196217,5.8138799,179.87,179.8,3.07]
[1753871196418,11.3737799,179.87,179.82,5.5611]
[1753871196714,3.05,179.86,179.83,3.07]
[1753871196918,3.05,179.89,179.83,3.07]
[1753871197111,7.32435912,179.88,179.83,3.07]
[1753871197414,5.5589,179.9,179.86,5.56]
[1753871197609,7.32166585,179.89,179.87,3.07]
[1753871197920,3.05,179.87,179.83,5.5609]
[1753871198112,3.05,179.88,179.85,3.07]
[1753871198416,5.5603,179.86,179.81,8.3253799]
[1753871198718,3.05,179.84,179.83,3.07]
[1753871199317,3.05,179.84,179.81,3.07]
[1753871199720,5.5612,179.83,179.79,5.5621]
[1753871200018,3.05,179.82,179.77,3.07]
[1753871200214,3.05,179.82,179.78,3.07]
[1753871200515,2.7638799,179.83,179.76,101.48]
[1753871200715,3.05,179.82,179.77,3.07]
[1753871201017,3.05,179.81,179.77,3.07]
[1753871201518,2.7638799,179.83,179.77,3.07]
[1753871201710,3.05,179.82,179.77,3.07]
[1753871202111,2.7638799,179.83,179.77,3.07]
[1753871202409,3.05,179.81,179.78,5.5622]
[1753871202612,3.05,179.81,179.8,3.07]
[1753871204713,8.6116,179.81,179.76,101.48]
[1753871204918,3.05,179.8,179.79,3.07]
[1753871205122,3.05,179.8,179.77,3.07]
[1753871205321,5.5625,179.78,179.77,3.07]
[1753871205520,8.6125,179.78,179.77,3.07]
[1753871205921,3.05,179.78,179.77,3.07]
[1753871206716,8.6125,179.78,179.77,3.07]
[1753871207425,3.05,179.78,179.77,3.07]
[1753871207928,2.7638799,179.81,179.76,5.5631]
[1753871208125,3.05,179.79,179.78,3.07]
[1753871209531,5.8138799,179.81,179.78,3.07]
[1753871209819,3.05,179.8,179.79,3.07]
[1753871210727,8.6119,179.8,179.79,3.07]
[1753871212024,5.5619,179.8,179.79,3.07]
[1753871212323,3.24,179.82,179.79,3.07]
[1753871212714,5.5616,179.81,179.79,3.07]
[1753871213225,3.24,179.82,179.8,3.14]
[1753871213925,3.24,179.84,179.81,3.14]
[1753871215327,5.5611,179.83,179.81,8.7014]
[1753871215526,5.5611,179.83,179.82,3.14]
[1753871215725,3.24,179.84,179.81,5.5614]
[1753871216020,3.24,179.84,179.83,3.14]
[1753871217428,8.8009,179.84,179.83,3.14]
[1753871220326,5.5609,179.84,179.83,3.14]
[1753871220530,5.5604,179.85,179.83,3.14]
[1753871221229,8.8004,179.85,179.83,3.14]
[1753871221633,3.24,179.86,179.83,3.14]
[1753871222032,5.5604,179.85,179.83,8.7009]
[1753871222229,5.5604,179.85,179.84,3.14]
[1753871222832,8.8004,179.85,179.84,3.14]
[1753871223534,5.5607,179.84,179.83,3.14]
[1753871223729,3.24,179.84,179.83,3.14]
[1753871224229,5.5606,179.85,179.83,3.14]
[1753871224429,3.24,179.85,179.83,5.561]
[1753871224630,5.5603,179.86,179.85,3.14]
[1753871224835,8.8003,179.86,179.85,3.14]
[1753871227243,5.5608,179.84,179.82,3.14]
[1753871228044,3.24,179.87,179.84,3.14]
[1753871228839,5.5602,179.86,179.84,3.14]
[1753871229039,8.8002,179.86,179.84,3.14]
[1753871229642,5.5604,179.85,179.84,3.14]
[1753871229842,2.7638799,179.85,179.78,2.7638799]
[1753871230044,2.7638799,179.83,179.8,3.14]
[1753871230245,8.8016,179.81,179.8,3.14]
[1753871230444,3.24,179.81,179.78,3.14]
[1753871230645,5.5624,179.79,179.75,3.14]
[1753871230844,3.24,179.78,179.76,5.563]
[1753871231045,3.24,179.78,179.77,3.14]
[1753871231243,3.24,179.8,179.77,3.14]
[1753871231439,3.24,179.79,179.78,3.14]
[1753871231637,2.7638799,179.83,179.78,3.14]
[1753871231844,8.8021,179.8,179.78,3.14]
[1753871232041,8.8021,179.8,179.79,3.14]
[1753871232242,3.24,179.8,179.77,3.14]
[1753871232443,3.24,179.79,179.78,3.14]
[1753871232642,8.8024,179.79,179.78,3.14]
[1753871233251,3.24,179.79,179.75,3.14]
[1753871233437,3.24,179.79,179.75,8.7033]
[1753871233639,3.24,179.79,179.76,3.14]
[1753871234548,5.5629,179.77,179.76,3.14]
[1753871234749,8.8029,179.77,179.76,3.14]
[1753871235051,3.24,179.77,179.7,5.9038799]
[1753871235239,3.24,179.77,179.71,3.14]
[1753871235739,8.8029,179.77,179.74,5.5636]
[1753871235944,8.8029,179.77,179.75,3.14]
[1753871237153,2.7638799,179.79,179.75,3.14]
[1753871237154,8.8032,179.76,179.75,3.14]
[1753871237653,5.5632,179.76,179.73,5.5639]
[1753871237849,3.24,179.75,179.73,5.5639]
[1753871238053,3.24,179.75,179.74,3.14]
[1753871238054,8.8035,179.75,179.74,3.14]
[1753871238254,3.24,179.75,179.74,3.14]
[1753871239656,5.5633,179.76,179.74,8.7038]
[1753871239956,8.8033,179.76,179.75,3.14]
[1753871240554,3.24,179.76,179.75,8.7035]
[1753871240854,3.24,179.77,179.76,3.14]
[1753871241248,7.46627178,179.77,179.76,3.14]
[1753871242746,13.02917178,179.77,179.76,3.14]
[1753871245160,5.5632,179.76,179.74,3.05]
[1753871245454,8.7332,179.76,179.74,3.05]
[1753871245961,5.5632,179.76,179.74,3.05]
[1753871246356,3.17,179.78,179.74,3.05]
[1753871246559,3.17,179.8,179.76,3.05]
[1753871246758,7.39711002,179.79,179.76,3.05]
[1753871246955,4.22711002,179.78,179.76,3.05]
[1753871247151,3.17,179.79,179.77,3.05]
[1753871247356,5.9338799,179.81,179.77,3.05]
[1753871247656,12.95873485,179.8,179.77,3.05]
[1753871247856,4.22663485,179.79,179.77,3.05]
[1753871248057,3.17,179.8,179.77,3.05]
[1753871248258,3.17,179.78,179.76,3.05]
[1753871248561,3.17,179.78,179.77,3.05]
[1753871249361,2.7638799,179.81,179.76,3.05]
[1753871249560,3.17,179.79,179.75,3.05]
[1753871249961,8.7328,179.78,179.75,3.05]
[1753871250667,5.5625,179.79,179.76,3.05]
[1753871251865,8.7325,179.79,179.76,3.05]
[1753871253365,3.17,179.78,179.76,3.05]
[1753871253662,3.17,179.78,179.74,3.05]
[1753871253862,3.17,179.78,179.75,3.05]
[1753871254065,8.7328,179.77,179.76,3.05]
[1753871255759,3.17,179.8,179.76,3.05]
[1753871256362,8.7321,179.8,179.76,3.05]
[1753871257367,5.5622,179.79,179.76,3.05]
[1753871259468,8.732,179.8,179.76,8.6131]
[1753871259968,3.17,179.82,179.77,3.05]
[1753871260165,7.8460807,179.86,179.78,3.05]
[1753871260367,7.61972581,179.85,179.8,2.7638799]
[1753871260564,3.17,179.83,179.81,3.05]
[1753871260770,8.7312,179.83,179.82,3.05]
[1753871263069,2.7638799,179.85,179.79,3.05]
[1753871263278,2.7638799,179.81,179.77,3.05]
[1753871263573,3.17,179.8,179.77,3.05]
[1753871263774,8.7324,179.79,179.75,3.05]
[1753871264172,3.17,179.79,179.75,3.05]
[1753871264374,5.5626,179.78,179.75,3.05]
[1753871264575,2.7638799,179.83,179.75,3.05]
[1753871264775,7.39477142,179.82,179.75,3.05]
[1753871264981,3.17,179.82,179.75,3.05]
[1753871265475,8.7321,179.8,179.77,3.05]
[1753871265875,5.5621,179.8,179.77,3.05]
[1753871266479,5.5621,179.8,179.77,8.6128]
[1753871266679,5.5617,179.81,179.78,3.05]
[1753871267379,8.7317,179.81,179.78,3.05]
[1753871267571,2.7638799,179.83,179.78,3.05]
[1753871267767,3.17,179.8,179.78,3.05]
[1753871268778,5.5622,179.79,179.78,3.05]
[1753871269480,5.562,179.8,179.78,3.05]
[1753871269681,3.17,179.82,179.78,3.05]
[1753871269977,5.5617,179.81,179.78,3.05]
[1753871270177,3.17,179.82,179.76,2.7638799]
[1753871270485,3.17,179.83,179.79,3.05]
[1753871271284,5.5613,179.82,179.79,8.6121]
[1753871271478,5.5613,179.82,179.8,3.24]
[1753871272982,5.5616,179.81,179.8,3.24]
[1753871273283,3.15,179.81,179.78,3.24]
[1753871273585,5.5627,179.78,179.75,3.24]
[1753871273781,3.15,179.77,179.75,3.24]
[1753871274283,3.15,179.77,179.76,3.24]
[1753871274984,3.15,179.77,179.75,3.24]
[1753871275185,3.15,179.77,179.69,105.31046794]
[1753871275186,2.7638799,179.77,179.69,105.31046794]
[1753871275484,3.15,179.76,179.7,3.24]
[1753871275985,8.7137,179.75,179.72,3.24]
[1753871276579,5.9138799,179.79,179.72,3.24]
[1753871276878,4.23610772,179.78,179.73,3.24]
[1753871277182,5.5636,179.75,179.73,3.24]
[1753871277482,3.15,179.74,179.73,3.24]
[1753871277879,8.7138,179.74,179.73,3.24]
[1753871280287,3.15,179.76,179.73,3.24]
[1753871280880,5.5637,179.75,179.71,5.5645]
[1753871281086,8.7137,179.75,179.74,3.24]
[1753871283480,3.15,179.75,179.72,3.24]
[1753871284287,5.564,179.74,179.73,3.24]
[1753871284489,5.564,179.74,179.72,3.24]
[1753871284684,8.714,179.74,179.73,3.24]
[1753871290494,8.7135,179.75,179.73,3.24]
[1753871290695,3.15,179.75,179.73,3.24]
[1753871291894,2.7638799,179.79,179.73,3.24]
[1753871292098,4.23454833,179.78,179.73,3.24]
[1753871292299,3.15,179.76,179.73,3.24]
[1753871292900,5.5636,179.75,179.73,8.8041]
[1753871293200,5.5636,179.75,179.74,3.24]
[1753871293401,2.7638799,179.79,179.71,5.5645]
[1753871293595,3.15,179.74,179.72,3.24]
[1753871294105,5.5641,179.73,179.72,3.24]
[1753871294397,3.15,179.74,179.72,3.24]
[1753871294600,8.714,179.74,179.72,8.8044]
[1753871294899,8.714,179.74,179.73,3.24]
[1753871300912,8.7133,179.76,179.73,3.24]
[1753871301207,3.15,179.76,179.73,3.24]
[1753871301404,2.7638799,179.79,179.73,3.24]
[1753871301601,3.08,179.75,179.73,3.24]
[1753871302305,8.6436,179.75,179.73,5.5641]
[1753871302503,8.6436,179.75,179.74,3.09]
[1753871304606,5.5636,179.75,179.74,3.09]
[1753871305106,8.6436,179.75,179.74,3.09]
[1753871305306,5.5636,179.75,179.74,3.09]
[1753871306201,3.08,179.76,179.74,3.09]
[1753871306404,8.6432,179.76,179.74,3.09]
[1753871307105,4.67698576,179.83,179.76,3.09]
[1753871307298,4.28236521,179.82,179.78,2.7638799]
[1753871307497,5.56,179.87,179.83,5.5609]
[1753871307707,4.28122981,179.86,179.84,3.09]
[1753871307906,3.08,179.88,179.84,3.09]
[1753871308111,3.08,179.86,179.84,3.09]
[1753871308501,7.44086566,179.91,179.84,3.09]
[1753871308704,3.08,179.85,179.84,3.09]
[1753871310408,3.08,179.83,179.82,3.09]
[1753871310612,3.08,179.84,179.82,3.09]
[1753871310807,3.08,179.88,179.82,3.09]
[1753871311108,3.08,179.86,179.82,3.09]
[1753871311312,3.08,179.85,179.82,5.5612]
[1753871311609,3.08,179.88,179.83,3.09]
[1753871311907,7.33940752,179.87,179.84,3.09]
[1753871312107,3.08,179.87,179.84,3.09]
[1753871312605,3.08,179.87,179.86,3.09]
[1753871312812,2.7638799,179.92,179.86,3.09]
[1753871313110,3.08,179.88,179.83,2.7638799]
[1753871313313,8.6395,179.88,179.87,3.09]
[1753871313611,3.08,179.86,179.85,3.09]
[1753871314013,3.08,179.89,179.81,5.8538799]
[1753871314211,3.08,179.87,179.82,3.09]
[1753871314605,8.6402,179.86,179.83,3.09]
[1753871316111,3.08,179.85,179.83,3.09]
[1753871317012,5.5602,179.86,179.83,3.09]
[1753871317211,3.08,179.86,179.84,3.09]
[1753871317511,2.7638799,179.9,179.84,3.09]
[1753871317706,3.08,179.88,179.85,5.5603]
[1753871317905,3.08,179.88,179.86,3.09]
[1753871318109,3.08,179.88,179.87,3.09]
[1753871319110,5.5592,179.89,179.87,3.09]
[1753871319312,8.6392,179.89,179.88,3.09]
[1753871320002,8.6392,179.89,179.83,2.7638799]
[1753871320003,8.6392,179.89,179.85,5.5603]
[1753871320200,3.08,179.87,179.86,3.09]
[1753871321510,8.6397,179.87,179.86,3.09]
[1753871324208,3.08,179.89,179.81,2.7638799]
[1753871324407,3.08,179.89,179.82,3.09]
[1753871324809,3.08,179.89,179.83,3.09]
[1753871325206,5.5602,179.86,179.83,8.6508]
[1753871325414,8.6402,179.86,179.84,3.09]
[1753871326115,5.5604,179.85,179.84,3.09]
[1753871326416,3.08,179.85,179.84,3.09]
[1753871327120,8.6404,179.85,179.84,3.09]
[1753871328319,3.08,179.85,179.84,3.09]
[1753871329118,8.6404,179.85,179.84,3.09]
[1753871329622,8.6404,179.85,179.82,5.5612]
[1753871329814,3.08,179.84,179.83,3.09]
[1753871331820,3.11,179.85,179.84,3.28]
[1753871332216,8.6702,179.86,179.84,3.28]
[1753871333219,3.11,179.89,179.83,2.7638799]
[1753871333422,3.11,179.89,179.84,3.28]
[1753871333622,3.11,179.89,179.82,3.28]
[1753871334117,5.5598,179.87,179.84,5.5605]
[1753871334323,8.6698,179.87,179.85,3.28]
[1753871335521,8.6698,179.87,179.85,8.8403]
[1753871335722,3.11,179.87,179.86,3.28]
[1753871337127,8.6697,179.87,179.86,3.28]
[1753871342832,3.11,179.87,179.86,8.84]
[1753871343031,3.11,179.88,179.87,3.28]
[1753871343932,8.6695,179.88,179.87,3.28]
[1753871344431,3.11,179.92,179.87,3.28]
[1753871344827,3.11,179.94,179.87,3.28]
[1753871345028,2.7638799,179.96,179.89,3.28]
[1753871345227,7.38377596,179.95,179.89,3.28]
[1753871345428,106.11698576,179.99,179.89,3.28]
[1753871345429,12.94157596,179.94,179.92,3.28]
[1753871345629,3.11,179.94,179.93,3.28]
[1753871345829,3.11,179.93,179.75,3.28]
[1753871346030,2.7638799,179.9,179.84,3.28]
[1753871346228,3.11,179.89,179.84,3.28]
[1753871346435,3.11,179.89,179.87,5.5596]
[1753871346631,3.11,179.89,179.88,3.28]
[1753871347023,8.6691,179.89,179.88,3.28]
[1753871348332,8.6691,179.89,179.87,5.5596]
[1753871348533,2.7638799,179.92,179.86,3.28]
[1753871348534,3.11,179.88,179.86,3.28]
[1753871349236,8.6697,179.88,179.86,3.28]
[1753871349437,8.6697,179.88,179.86,8.84]
[1753871349637,5.5597,179.88,179.87,3.28]
[1753871349836,3.11,179.9,179.87,3.28]
[1753871350338,8.6689,179.9,179.87,8.8396]
[1753871350542,8.6689,179.9,179.87,5.5596]
[1753871350729,8.6689,179.9,179.89,3.28]
[1753871350933,12.95331005,179.9,179.89,3.28]
[1753871360444,3.11,179.89,179.87,3.28]
[1753871360644,3.11,179.88,179.87,3.28]
[1753871361447,8.6694,179.88,179.87,3.28]
[1753871363151,5.5594,179.88,179.87,3.28]
[1753871364448,5.5605,179.85,179.82,3.24]
[1753871364655,3.21,179.85,179.82,3.24]
[1753871365153,8.7712,179.83,179.8,5.5617]
[1753871365451,3.21,179.83,179.8,5.5617]
[1753871365652,3.21,179.83,179.81,3.24]
[1753871366147,2.7638799,179.84,179.8,5.5617]
[1753871366349,3.21,179.82,179.79,5.5621]
[1753871366849,3.21,179.82,179.8,3.24]
[1753871367251,5.5617,179.81,179.8,3.24]
[1753871368356,8.7717,179.81,179.8,3.24]
[1753871369443,8.772,179.8,179.78,8.8025]
[1753871369647,8.772,179.8,179.78,5.5625]
[1753871369850,2.7638799,179.84,179.79,3.24]
[1753871370048,3.21,179.81,179.79,3.24]
[1753871370250,5.5614,179.82,179.8,3.24]
[1753871370457,3.21,179.83,179.8,3.24]
[1753871370656,7.49298097,179.82,179.8,3.24]
[1753871370857,3.21,179.82,179.8,3.24]
[1753871371055,5.5618,179.81,179.77,5.5627]
[1753871371256,8.7718,179.81,179.78,3.24]
[1753871371662,5.562,179.8,179.78,3.24]
[1753871371857,8.772,179.8,179.78,3.24]
[1753871372057,5.562,179.8,179.79,3.24]
[1753871372258,5.5628,179.78,179.76,3.24]
[1753871372458,2.7638799,179.82,179.76,3.24]
[1753871372754,5.5628,179.78,179.76,3.24]
[1753871372959,8.7728,179.78,179.76,3.24]
[1753871374156,8.7724,179.79,179.76,3.24]
[1753871374755,5.5626,179.78,179.76,3.24]
[1753871375559,8.7723,179.79,179.76,3.24]
[1753871376062,3.21,179.81,179.78,3.24]
[1753871377263,5.5619,179.8,179.78,3.24]
[1753871378362,8.7719,179.8,179.78,3.24]
[1753871378957,5.5622,179.79,179.78,3.24]
[1753871379157,8.7722,179.79,179.78,3.24]
[1753871379564,3.21,179.79,179.78,3.24]
[1753871379863,8.772,179.8,179.78,3.24]
[1753871381464,8.7717,179.81,179.78,3.24]
[1753871383159,5.5617,179.81,179.77,5.5628]
[1753871383364,15.79638576,179.88,179.75,101.4]
[1753871383365,5.9738799,179.88,179.81,3.24]
[1753871383565,4.27055437,179.87,179.81,3.24]
[1753871383766,5.5607,179.85,179.81,8.8015]
[1753871383968,3.21,179.84,179.83,3.24]
[1753871385371,8.7707,179.84,179.83,3.24]
[1753871388161,2.7638799,179.86,179.81,3.24]
[1753871388370,3.21,179.83,179.8,104.68]
[1753871389466,8.7716,179.81,179.8,104.68]
[1753871390072,8.7716,179.81,179.8,3.24]
[1753871394174,3.21,179.81,179.78,3.28]
[1753871394374,3.12,179.79,179.77,104.7]
[1753871394966,3.12,179.78,179.75,101.18423097]
[1753871395172,3.12,179.77,179.75,104.46423097]
[1753871395373,3.12,179.76,179.75,101.18423097]
[1753871395881,5.5632,179.76,179.75,101.18423097]
[1753871396177,5.5632,179.76,179.75,104.46423097]
[1753871396975,8.6832,179.76,179.75,3.28]
[1753871400174,5.5632,179.76,179.75,3.28]
[1753871400577,5.5635,179.75,179.74,101.42]
[1753871400780,8.6835,179.75,179.74,104.7]
[1753871400978,3.12,179.76,179.75,3.28]
[1753871401176,3.12,179.77,179.75,3.28]
[1753871401579,3.12,179.77,179.76,3.28]
[1753871402278,3.12,179.77,179.74,101.42]
[1753871402483,3.12,179.75,179.74,101.42]
[1753871402688,3.12,179.75,179.69,405.0]
[1753871402879,3.12,179.75,179.7,101.44]
[1753871403377,3.12,179.75,179.71,3.28]
[1753871403775,5.8838799,179.72,179.7,101.44]
[1753871403981,2.7638799,179.73,179.69,3.28]
[1753871404282,3.12,179.72,179.7,3.28]
[1753871404483,3.12,179.71,179.7,3.28]
[1753871404683,2.7638799,179.73,179.7,3.28]
[1753871404883,3.12,179.72,179.7,3.28]
[1753871405280,3.12,179.78,179.7,3.28]
[1753871405480,3.12,179.76,179.7,3.28]
[1753871406182,5.5641,179.74,179.72,3.28]
[1753871406586,8.6841,179.73,179.72,3.28]
[1753871408390,8.6841,179.73,179.69,3.28]
[1753871408391,3.12,179.7,179.69,3.28]
[1753871408887,5.5649,179.71,179.69,3.28]
[1753871409082,3.12,179.71,179.69,5.5653]
[1753871409285,5.5645,179.72,179.7,3.28]
[1753871409582,8.6845,179.72,179.7,3.28]
[1753871409983,5.5647,179.71,179.7,3.28]
[1753871410183,3.12,179.72,179.7,8.845]
[1753871410384,3.12,179.72,179.71,3.28]
[1753871410585,8.6845,179.72,179.71,3.28]
[1753871412478,2.7638799,179.75,179.68,5.5655]
[1753871412479,5.5651,179.7,179.69,3.28]
[1753871412784,5.5651,179.7,179.68,5.5655]
[1753871412785,3.12,179.7,179.6,95.58492816]
[1753871412983,5.5667,179.65,179.61,101.46]
[1753871413182,3.12,179.64,179.62,5.5673]
[1753871413376,8.6869,179.64,179.63,3.28]
[1753871413582,3.12,179.64,179.62,3.28]
[1753871413784,3.12,179.64,179.63,3.28]
[1753871414287,8.6869,179.64,179.63,3.28]
[1753871414776,3.12,179.63,179.61,101.46]
[1753871414978,3.12,179.63,179.61,3.28]
[1753871415183,3.12,179.63,179.53,89.62037224]
[1753871415184,3.12,179.61,179.53,89.62037224]
[1753871415381,11.1297,179.71,179.56,5.5692]
[1753871415382,3.12,179.58,179.56,5.5692]
[1753871415585,8.6886,179.59,179.56,8.8492]
[1753871415784,8.688,179.61,179.58,5.5687]
[1753871415984,3.12,179.61,179.54,2.7638799]
[1753871416194,3.12,179.61,179.55,3.28]
[1753871417287,2.7638799,179.62,179.55,3.28]
[1753871417595,3.12,179.59,179.58,3.28]
[1753871417993,3.12,179.6,179.59,3.28]
[1753871418284,3.12,179.6,179.54,2.7638799]
[1753871418285,5.568,179.61,179.58,5.5686]
[1753871418489,8.688,179.61,179.6,3.28]
[1753871418994,5.5683,179.6,179.58,3.28]
[1753871419299,3.12,179.59,179.58,3.28]
[1753871420088,5.568,179.61,179.58,8.8487]
[1753871420292,3.12,179.6,179.59,3.28]
[1753871421195,3.12,179.6,179.59,8.8484]
[1753871421392,17.3450962,179.71,179.59,3.04]
[1753871421393,3.25,179.68,179.59,3.04]
[1753871421595,3.25,179.66,179.59,3.04]
[1753871423188,5.5668,179.65,179.59,3.04]
[1753871423393,3.25,179.66,179.59,3.04]
[1753871423792,5.5667,179.65,179.62,5.5674]
[1753871423995,8.8167,179.65,179.64,3.04]
[1753871424193,2.7638799,179.67,179.64,3.04]
[1753871424397,3.25,179.67,179.64,3.04]
[1753871424793,2.7638799,179.71,179.65,5.5665]
[1753871424997,3.25,179.7,179.66,3.04]
[1753871425198,3.25,179.7,179.67,3.04]
[1753871425392,8.8156,179.68,179.67,3.04]
[1753871427498,8.8167,179.65,179.64,3.04]
[1753871428203,3.25,179.64,179.63,3.04]
[1753871429394,8.817,179.64,179.63,3.04]
[1753871429595,5.567,179.64,179.63,3.04]
[1753871430802,5.5666,179.65,179.63,3.04]
[1753871431002,8.8166,179.65,179.64,3.04]
[1753871432405,3.25,179.63,179.62,3.04]
[1753871433002,3.25,179.63,179.61,3.04]
[1753871433301,3.25,179.62,179.57,3.04]
[1753871433501,8.8182,179.6,179.57,3.04]
[1753871433802,3.25,179.58,179.54,3.04]
[1753871433997,5.5695,179.56,179.53,5.5703]
[1753871434296,3.25,179.54,179.53,3.04]
[1753871434697,8.8195,179.56,179.53,3.04]
[1753871435202,3.25,179.57,179.53,3.04]
[1753871435502,8.8192,179.57,179.53,8.6102]
[1753871435705,8.8192,179.57,179.53,3.04]
[1753871435904,2.7638799,179.6,179.53,3.04]
[1753871436108,6.0138799,179.6,179.53,3.04]
[1753871436398,3.25,179.59,179.53,3.04]
[1753871437602,3.25,179.58,179.56,3.04]
[1753871437906,3.25,179.58,179.57,3.04]
[1753871438805,8.8187,179.58,179.57,3.04]
[1753871439006,8.8187,179.58,179.54,5.5699]
[1753871439207,3.25,179.57,179.56,3.04]
[1753871441613,8.8185,179.59,179.56,3.04]
[1753871441914,3.25,179.58,179.57,3.04]
[1753871443814,8.8187,179.58,179.57,3.04]
[1753871444113,3.25,179.58,179.54,5.5699]
[1753871444318,5.5703,179.54,179.5,3.04]
[1753871444616,5.5703,179.54,179.51,5.5708]
[1753871444617,3.25,179.53,179.51,5.5708]
[1753871444920,3.25,179.53,179.52,3.04]
[1753871444921,8.8203,179.53,179.52,3.04]
[1753871445216,3.25,179.53,179.48,3.04]
[1753871445415,3.25,179.5,179.46,104.74]
[1753871445716,3.25,179.48,179.43,3.04]
[1753871446814,3.25,179.5,179.49,3.04]
[1753871447621,2.7638799,179.5,179.4,2.7638799]
[1753871447821,2.7638799,179.5,179.41,3.04]
[1753871447822,3.25,179.49,179.41,3.04]
[1753871448424,4.67698576,179.54,179.4,2.7638799]
[1753871448425,3.25,179.45,179.4,3.04]
[1753871448627,3.25,179.44,179.4,3.04]
[1753871448822,3.25,179.44,179.41,5.5738]
[1753871449021,3.25,179.44,179.39,405.52]
[1753871449221,3.25,179.44,179.43,3.04]
[1753871450526,3.25,179.44,179.43,8.6134]
[1753871450732,3.25,179.44,179.43,3.04]
[1753871451026,3.25,179.45,179.44,3.04]
[1753871451424,3.25,179.45,179.44,3.19]
[1753871452222,5.8938799,179.48,179.44,3.19]
[1753871452617,4.67698576,179.54,179.46,5.5724]